bitfinex/quotes_SOLUSD_20240621
["timestamp","ask_amount","ask_price","bid_price","bid_amount"]
[1718995347017,15.463,131.02,130.89,11.1917911]
[1718995347018,15.463,131.0,130.89,11.1917911]
[1718995347216,6.5155,130.98,130.89,17.3034911]
[1718995347430,20.0,130.97,130.9,6.1114]
[1718995348214,20.0,130.97,130.89,6.1118]
[1718995348430,20.0,130.97,130.87,29.47]
[1718995350143,20.0,130.97,130.9,6.1114]
[1718995352032,20.0,130.97,130.86,29.47]
[1718995352232,20.0,130.97,130.9,6.1113]
[1718995352652,20.0,130.97,130.89,6.1118]
[1718995353834,15.7525,130.95,130.86,29.47]
[1718995354031,15.7525,130.95,130.85,15.2845]
[1718995354729,15.7525,130.95,130.88,6.1123]
[1718995355135,15.7525,130.95,130.89,6.1119]
[1718995355331,15.7525,130.95,130.88,6.1123]
[1718995355648,15.7525,130.95,130.89,6.1119]
[1718995357643,15.7525,130.95,130.9,6.1114]
[1718995358032,15.7525,130.95,130.89,6.1118]
[1718995361147,15.7525,130.95,130.9,6.1114]
[1718995361660,15.7525,130.95,130.91,6.111]
[1718995361850,15.7525,130.95,130.88,29.47]
[1718995362054,15.7525,130.95,130.92,6.1104]
[1718995362430,34.06794515,130.97,130.92,6.1104]
[1718995363357,34.06794515,130.97,130.88,29.47]
[1718995363676,27.98289875,130.97,130.92,6.1103]
[1718995363860,7.98289875,130.97,130.95,6.1088]
[1718995364158,7.98289875,130.97,130.96,6.1087]
[1718995364345,23.2155,131.05,130.96,6.1087]
[1718995364545,31.19691603,131.05,130.97,6.1082]
[1718995365461,20.0,131.04,130.97,6.1082]
[1718995365760,20.0,131.04,130.94,29.47]
[1718995365949,20.0,131.04,131.0,6.1067]
[1718995366151,20.0,131.04,130.96,15.2708]
[1718995366455,23.2155,131.05,130.96,15.2708]
[1718995366655,23.2155,131.05,130.99,6.1069]
[1718995367648,23.2155,131.05,131.0,6.1068]
[1718995367860,23.2155,131.05,131.01,6.1063]
[1718995369140,23.2155,131.05,130.97,44.7395]
[1718995369341,23.2155,131.05,130.99,6.1069]
[1718995369859,23.2155,131.05,130.97,44.7395]
[1718995370078,23.2155,131.05,131.01,6.1063]
[1718995370371,23.2155,131.05,130.99,6.107]
[1718995371668,23.2155,131.05,131.0,6.1068]
[1718995372751,23.2155,131.05,131.01,6.1063]
[1718995373152,23.2155,131.05,131.0,6.1066]
[1718995373471,23.2155,131.05,130.99,6.1071]
[1718995375778,45.0,131.04,130.97,6.108]
[1718995376076,20.0,131.03,130.97,6.108]
[1718995376481,20.0,131.03,130.93,15.2742]
[1718995376963,20.0,131.03,130.96,6.1087]
[1718995377158,20.0,131.03,130.91,74.0666]
[1718995377159,20.0,131.03,130.98,6.1077]
[1718995377575,20.0,131.04,130.98,6.1077]
[1718995377769,20.0,131.04,130.97,6.1082]
[1718995377965,20.0,131.04,130.96,6.1085]
[1718995378151,20.0,131.04,130.97,6.1082]
[1718995380173,20.0,131.04,130.98,6.1077]
[1718995380379,20.0,131.04,130.98,6.1075]
[1718995380762,20.0,131.04,130.97,6.108]
[1718995381159,20.0,131.04,130.95,15.272]
[1718995381364,20.0,131.04,130.99,6.107]
[1718995381561,23.2155,131.05,131.01,6.106]
[1718995382396,23.2155,131.05,130.97,29.47]
[1718995383382,23.2155,131.05,130.98,6.1076]
[1718995384683,23.2155,131.05,131.01,6.1062]
[1718995384984,23.2155,131.05,131.02,6.1058]
[1718995385187,23.2155,131.05,131.01,6.1062]
[1718995385781,14.12268165,131.1,131.03,29.47]
[1718995385782,7.97943631,131.1,131.03,29.47]
[1718995386085,0.8627372,131.13,131.09,6.1025]
[1718995386265,0.8627372,131.13,131.05,15.2608]
[1718995386266,20.8627372,131.13,131.07,6.1034]
[1718995386582,20.8627372,131.13,131.06,6.1039]
[1718995386784,20.8627372,131.13,131.05,6.1044]
[1718995386987,20.8627372,131.13,131.02,45.0]
[1718995387196,20.8627372,131.13,131.04,29.47]
[1718995387485,0.8627372,131.13,131.07,52.45]
[1718995387685,0.8627372,131.13,131.12,6.1012]
[1718995387995,3.07234094,131.22,131.19,6.0979]
[1718995388162,3.07234094,131.22,131.18,6.0984]
[1718995388865,3.07234094,131.22,131.17,6.0988]
[1718995389067,3.07234094,131.22,131.16,6.0994]
[1718995389264,3.07234094,131.22,131.13,44.7211]
[1718995389573,3.07234094,131.22,131.17,6.0988]
[1718995389888,3.07234094,131.22,131.15,6.0994]
[1718995390095,3.07234094,131.22,131.16,6.0991]
[1718995390271,3.07234094,131.22,131.13,44.7211]
[1718995390591,12.30519723,131.26,131.16,6.0993]
[1718995391181,20.0,131.25,131.15,6.0998]
[1718995391386,20.0,131.25,131.14,6.1003]
[1718995391686,22.4344,131.23,131.1,44.7244]
[1718995391889,65.0,131.22,131.14,6.1001]
[1718995392079,65.0,131.22,131.15,6.0997]
[1718995392287,20.0,131.22,131.15,6.0997]
[1718995393163,20.0,131.22,131.12,29.47]
[1718995393365,20.0,131.22,131.14,6.1002]
[1718995393585,20.0,131.22,131.1,15.2544]
[1718995393796,74.47,131.21,131.08,6.103]
[1718995394086,15.9643,131.19,131.06,29.47]
[1718995394290,65.0,131.18,131.07,6.1033]
[1718995395093,65.0,131.18,131.08,6.103]
[1718995395488,65.0,131.18,131.06,35.5739]
[1718995395887,6.0551,131.17,131.05,6.1043]
[1718995396075,65.0,131.16,131.05,6.1043]
[1718995396984,65.0,131.16,131.04,6.1049]
[1718995397186,65.0,131.16,131.03,6.1053]
[1718995397187,15.6325,131.15,131.03,6.1053]
[1718995397393,65.0,131.14,130.97,60.039626]
[1718995397595,6.5586,131.13,131.0,29.47]
[1718995397779,65.0,131.12,131.03,6.1053]
[1718995398099,65.0,131.12,131.0,44.736]
[1718995398100,65.0,131.12,131.02,6.1055]
[1718995398272,65.0,131.12,131.03,6.1054]
[1718995398477,65.0,131.12,131.0,29.47]
[1718995398478,65.0,131.12,131.02,6.1057]
[1718995398711,72.97769661,131.12,131.01,6.1063]
[1718995399076,72.97769661,131.12,130.97,52.45]
[1718995399395,72.97769661,131.12,130.98,15.2692]
[1718995399572,72.97769661,131.12,130.98,22.98]
[1718995399779,72.97769661,131.12,131.03,6.1051]
[1718995400480,72.97769661,131.12,130.99,15.2671]
[1718995400799,72.97769661,131.12,131.01,6.1061]
[1718995401173,72.97769661,131.12,131.02,6.1058]
[1718995401379,72.97769661,131.12,131.04,6.1046]
[1718995401590,65.0,131.12,131.04,6.1046]
[1718995401789,65.0,131.12,131.03,44.7325]
[1718995402099,20.0,131.12,131.05,6.1041]
[1718995403000,20.0,131.12,131.04,6.1049]
[1718995403180,20.0,131.12,131.03,29.47]
[1718995403384,20.0,131.12,131.05,6.1042]
[1718995403577,20.0,131.12,131.06,6.104]
[1718995404205,20.0,131.12,130.98,130.5372]
[1718995404206,20.0,131.12,131.04,6.1048]
[1718995404377,20.0,131.12,131.02,35.5758]
[1718995404587,20.0,131.12,131.02,29.47]
[1718995405202,20.0,131.12,131.06,6.1038]
[1718995405500,20.0,131.12,131.02,44.7346]
[1718995405707,20.0,131.12,131.05,6.1045]
[1718995406093,20.0,131.12,131.04,6.1047]
[1718995406688,20.0,131.12,131.03,6.1054]
[1718995406997,20.0,131.12,131.04,6.1046]
[1718995408402,20.0,131.12,131.05,6.1044]
[1718995408624,20.0,131.12,131.02,29.47]
[1718995409418,20.0,131.12,131.05,6.1042]
[1718995410192,20.0,131.12,131.02,35.5756]
[1718995410392,20.0,131.12,131.02,6.1057]
[1718995410594,45.0,131.11,131.02,6.1057]
[1718995410814,20.0,131.1,131.03,6.1053]
[1718995411618,20.0,131.1,131.02,6.1057]
[1718995411818,20.0,131.1,131.02,15.2648]
[1718995412119,20.0,131.12,131.06,6.104]
[1718995412497,20.0,131.12,131.07,6.1034]
[1718995413200,20.0,131.12,131.06,6.1038]
[1718995414724,20.0,131.12,131.04,30.5244]
[1718995414907,6.5586,131.13,131.1,6.102]
[1718995416421,6.5586,131.13,131.08,6.1029]
[1718995416632,6.5586,131.13,131.06,52.45]
[1718995416633,6.5586,131.13,131.09,6.1023]
[1718995416834,6.5586,131.13,131.1,6.1021]
[1718995417330,6.5586,131.13,131.07,29.47]
[1718995417926,6.5586,131.13,131.08,6.1027]
[1718995418112,6.5586,131.13,131.07,6.1034]
[1718995419299,6.5586,131.13,131.04,29.47]
[1718995419622,20.0,131.12,131.05,6.1045]
[1718995420194,20.0,131.12,131.01,52.45]
[1718995420496,20.0,131.12,131.03,6.1053]
[1718995420695,20.0,131.12,131.04,6.1045]
[1718995420922,20.0,131.12,131.05,6.1045]
[1718995421722,20.0,131.12,131.06,6.104]
[1718995422313,20.0,131.12,131.03,30.5265]
[1718995422515,20.0,131.12,131.08,6.1029]
[1718995422718,20.0,131.12,131.04,44.7324]
[1718995423010,6.5586,131.13,131.04,29.47]
[1718995423219,6.5586,131.13,131.12,6.1012]
[1718995423928,6.5586,131.13,131.1,6.102]
[1718995424124,6.5586,131.13,131.09,6.1026]
[1718995424303,6.5586,131.13,131.09,6.1024]
[1718995425721,6.5586,131.13,131.04,15.2623]
[1718995426311,6.5586,131.13,131.03,29.47]
[1718995426512,20.0,131.12,131.03,29.47]
[1718995426821,20.0,131.12,131.05,6.1042]
[1718995426998,20.0,131.12,131.03,29.47]
[1718995427202,20.0,131.12,131.05,6.1045]
[1718995427402,20.0,131.12,131.04,6.1047]
[1718995427624,20.0,131.12,131.05,6.1045]
[1718995427815,27.96055911,131.12,131.06,6.104]
[1718995428014,20.0,131.12,131.06,6.104]
[1718995428717,20.0,131.12,131.04,6.1046]
[1718995429032,20.0,131.12,131.03,29.47]
[1718995429717,20.0,131.12,131.04,6.1048]
[1718995430025,20.0,131.12,131.03,52.45]
[1718995430241,20.0,131.12,131.05,15.2612]
[1718995430409,20.0,131.12,131.06,6.1039]
[1718995431231,20.0,131.12,131.06,6.1038]
[1718995431738,20.0,131.12,131.03,29.47]
[1718995431922,20.0,131.12,131.06,6.104]
[1718995433507,20.0,131.12,131.05,6.1043]
[1718995434019,20.0,131.12,131.06,6.1036]
[1718995436104,20.0,131.12,131.04,15.2623]
[1718995436304,20.0,131.12,131.07,6.1033]
[1718995436928,20.0,131.12,131.06,15.2601]
[1718995437116,20.0,131.12,131.08,6.103]
[1718995437535,20.0,131.12,131.06,15.2601]
[1718995437732,20.0,131.12,131.08,6.1029]
[1718995437920,20.0,131.12,131.07,6.1033]
[1718995438218,20.0,131.12,131.06,15.2599]
[1718995438524,20.0,131.12,131.03,29.47]
[1718995438718,20.0,131.12,131.05,6.1041]
[1718995440517,20.0,131.12,131.04,6.1049]
[1718995441227,20.0,131.12,131.03,35.5752]
[1718995441417,20.0,131.12,131.04,6.1049]
[1718995441615,20.0,131.12,131.03,35.5753]
[1718995442021,20.0,131.12,131.04,6.105]
[1718995442741,15.7835,131.11,131.01,29.47]
[1718995442917,15.7835,131.11,131.02,6.1056]
[1718995442918,20.0,131.1,131.02,6.1056]
[1718995443241,20.0,131.1,131.01,6.1063]
[1718995443440,45.0,131.09,131.02,6.1058]
[1718995443746,20.0,131.08,131.02,6.1058]
[1718995444249,20.0,131.08,131.01,6.1062]
[1718995444416,20.0,131.08,130.99,67.7174]
[1718995444614,20.0,131.1,131.0,15.266]
[1718995445049,20.0,131.1,131.02,29.47]
[1718995445248,15.7835,131.11,131.05,6.1045]
[1718995445453,15.7835,131.11,131.06,6.1039]
[1718995445765,15.7835,131.11,131.07,6.1035]
[1718995446438,15.7835,131.11,131.06,6.1038]
[1718995447060,15.7835,131.11,131.05,6.1044]
[1718995447233,15.7835,131.11,131.06,6.1039]
[1718995447659,15.7835,131.11,131.03,15.2635]
[1718995447963,15.7835,131.11,131.05,6.1042]
[1718995448265,15.7835,131.11,131.06,6.1039]
[1718995448650,15.7835,131.11,131.05,6.1043]
[1718995449860,15.7835,131.11,131.06,6.1037]
[1718995450045,15.7835,131.11,131.09,6.1023]
[1718995450246,6.5586,131.13,131.1,6.102]
[1718995450451,15.3612,131.14,131.11,6.1014]
[1718995451046,15.3612,131.14,131.1,6.102]
[1718995451252,15.3612,131.14,131.11,6.1017]
[1718995451447,6.5677,131.16,131.12,6.1011]
[1718995452139,6.5677,131.16,131.12,6.101]
[1718995453233,6.5677,131.16,131.11,6.1015]
[1718995453661,6.5677,131.16,131.1,6.102]
[1718995453861,6.5677,131.16,131.11,6.1017]
[1718995454243,6.5677,131.16,131.12,6.1012]
[1718995454645,15.2836,131.17,131.1,15.2553]
[1718995454843,15.2836,131.17,131.13,6.1004]
[1718995455240,15.2836,131.17,131.12,6.101]
[1718995455442,15.2836,131.17,131.11,6.1016]
[1718995456644,15.2836,131.17,131.05,38.2405]
[1718995456954,15.2836,131.17,131.1,6.1021]
[1718995457451,15.2836,131.17,131.08,15.2573]
[1718995457645,15.2836,131.17,131.11,6.1015]
[1718995457847,15.2836,131.17,131.12,6.1012]
[1718995458860,15.2836,131.17,131.1,6.102]
[1718995459072,20.0,131.16,131.08,6.1027]
[1718995459363,20.0,131.16,131.07,6.1034]
[1718995459567,6.5227,131.15,131.07,6.1034]
[1718995459754,65.0,131.14,131.06,6.104]
[1718995460855,16.4324,131.13,131.06,6.104]
[1718995461061,20.0,131.12,131.05,6.1044]
[1718995461565,20.0,131.12,131.03,29.47]
[1718995461950,6.5662,131.11,131.03,6.1052]
[1718995462155,20.0,131.1,131.04,6.105]
[1718995463365,20.0,131.1,131.02,6.1057]
[1718995463546,16.3258,131.09,131.01,6.1063]
[1718995463752,20.0,131.08,131.01,6.1063]
[1718995463951,20.0,131.08,131.0,6.1067]
[1718995464368,20.0,131.08,131.01,6.1063]
[1718995464570,20.0,131.08,131.02,6.1059]
[1718995465267,20.0,131.08,131.01,6.1062]
[1718995465475,20.0,131.08,130.97,29.47]
[1718995465770,51.4537,131.07,130.97,29.47]
[1718995466075,51.4537,131.07,131.0,6.1068]
[1718995466283,20.0,131.06,131.0,6.1068]
[1718995468061,20.0,131.06,131.02,6.1057]
[1718995468265,6.4537,131.07,131.03,6.1052]
[1718995468462,6.4537,131.07,131.02,15.2647]
[1718995468667,6.4537,131.07,131.04,6.1049]
[1718995468877,6.4537,131.07,131.03,6.1052]
[1718995470462,6.4537,131.07,131.04,6.1048]
[1718995470664,6.4537,131.07,131.03,6.1052]
[1718995470866,6.4537,131.07,131.03,6.1053]
[1718995472669,6.4537,131.07,131.04,6.1049]
[1718995472870,16.3258,131.09,131.06,6.104]
[1718995473084,16.3258,131.09,131.05,6.1043]
[1718995473466,16.3258,131.09,131.04,6.1048]
[1718995473766,16.3258,131.09,131.0,98.2505]
[1718995473968,16.3258,131.09,131.04,6.1049]
[1718995475279,16.3258,131.09,131.05,6.1045]
[1718995476071,16.3258,131.09,131.04,6.1048]
[1718995476272,16.3258,131.09,131.01,15.265]
[1718995476273,16.3258,131.09,131.03,6.1053]
[1718995476588,16.3258,131.09,131.02,6.1057]
[1718995476793,20.0,131.08,131.03,6.1053]
[1718995477776,20.0,131.08,131.04,6.105]
[1718995477984,16.3258,131.09,131.0,44.7362]
[1718995477985,16.3258,131.09,131.05,6.1044]
[1718995478592,16.3258,131.09,131.04,6.1048]
[1718995478773,16.3258,131.09,131.05,6.1045]
[1718995479589,16.3258,131.09,131.04,6.1048]
[1718995480593,16.3258,131.09,131.05,6.1042]
[1718995480796,16.3258,131.09,131.06,6.1039]
[1718995481371,16.3258,131.09,131.08,6.1031]
[1718995481576,6.3617,131.1,131.08,6.1031]
[1718995481788,15.5511,131.12,131.03,53.5064]
[1718995481966,15.5511,131.12,131.07,6.1031]
[1718995482166,15.5511,131.12,131.09,6.1024]
[1718995482891,6.2368,131.13,131.1,6.1021]
[1718995483099,16.4756,131.15,131.08,29.47]
[1718995483100,16.4756,131.15,131.11,6.1016]
[1718995483671,16.4756,131.15,131.1,6.102]
[1718995485091,281.8399,131.18,131.13,6.1007]
[1718995485299,21.4399,131.18,131.13,6.1007]
[1718995485498,21.4399,131.18,131.12,6.101]
[1718995487390,21.4399,131.18,131.13,6.1007]
[1718995488194,21.4399,131.18,131.09,15.2564]
[1718995488898,21.4399,131.18,131.1,6.1018]
[1718995489199,20.0,131.17,131.11,6.1016]
[1718995489396,20.0,131.17,131.07,44.7894]
[1718995489587,20.0,131.17,131.09,6.1026]
[1718995489989,20.0,131.17,131.1,6.1021]
[1718995490600,20.0,131.17,131.09,6.1026]
[1718995490901,45.0,131.16,131.09,6.1026]
[1718995491085,20.0,131.15,131.08,6.103]
[1718995492001,20.0,131.15,131.03,45.12116383]
[1718995492002,22.667,131.14,131.02,6.5513]
[1718995492183,20.0,131.13,131.04,6.1049]
[1718995492382,21.6813,131.12,131.02,6.1056]
[1718995492687,65.0,131.11,131.02,6.1055]
[1718995492887,65.0,131.11,131.05,6.1045]
[1718995493083,65.0,131.11,131.03,6.1052]
[1718995493593,65.0,131.11,131.04,6.1049]
[1718995494294,65.0,131.11,131.01,15.2657]
[1718995494295,20.0,131.11,131.05,6.1044]
[1718995494799,20.0,131.11,131.04,6.1049]
[1718995494979,20.0,131.11,131.03,35.5751]
[1718995495594,20.0,131.11,131.03,6.1051]
[1718995496205,20.0,131.11,131.01,15.2657]
[1718995496376,20.0,131.11,131.03,6.1052]
[1718995496377,45.0,131.1,131.03,6.1052]
[1718995496875,20.0,131.09,131.03,6.1052]
[1718995498602,16.1102,131.08,131.03,6.1052]
[1718995499103,16.1102,131.08,131.03,44.7327]
[1718995499304,21.5077,131.12,131.07,15.2589]
[1718995499505,27.36809718,131.18,131.14,6.1001]
[1718995499709,27.36809718,131.18,131.09,29.47]
[1718995499882,21.3699,131.18,131.13,6.1005]
[1718995500306,21.3699,131.18,131.12,35.5709]
[1718995500506,21.3699,131.18,131.13,6.1005]
[1718995502298,21.3699,131.18,131.14,6.1002]
[1718995503021,6.4126,131.21,131.17,6.0989]
[1718995503602,6.4126,131.21,131.16,6.0992]
[1718995504193,6.4126,131.21,131.18,6.0984]
[1718995504398,6.4126,131.21,131.17,6.0988]
[1718995504806,6.4126,131.21,131.16,6.0992]
[1718995505593,6.4126,131.21,131.17,6.0988]
[1718995505793,6.4126,131.21,131.18,6.0983]
[1718995506202,22.3382,131.25,131.18,29.47]
[1718995506633,8.81636418,131.27,131.21,29.47]
[1718995506789,0.8627372,131.27,131.26,6.0947]
[1718995507803,0.8627372,131.27,131.25,6.095]
[1718995508117,0.8627372,131.27,131.26,6.0947]
[1718995508513,7.94971654,131.36,131.32,6.0918]
[1718995508696,6.1398,131.39,131.33,15.2286]
[1718995509040,17.0611372,131.4,131.33,15.2286]
[1718995509041,17.0611372,131.4,131.36,6.0897]
[1718995509321,17.0611372,131.4,131.33,29.47]
[1718995509527,17.0611372,131.4,131.33,6.091]
[1718995509897,17.0611372,131.4,131.29,15.2327]
[1718995510096,17.0611372,131.4,131.32,6.0916]
[1718995510293,0.8627372,131.4,131.34,6.0909]
[1718995510521,0.8627372,131.4,131.33,15.2286]
[1718995510714,0.8627372,131.4,131.37,6.0895]
[1718995511107,0.8627372,131.4,131.33,15.2286]
[1718995511306,0.8627372,131.4,131.35,6.0905]
[1718995511508,0.8627372,131.4,131.34,6.0906]
[1718995511901,0.8627372,131.4,131.35,6.0904]
[1718995512303,0.8627372,131.4,131.33,15.2286]
[1718995512606,0.8627372,131.4,131.36,6.0899]
[1718995512808,0.8627372,131.4,131.37,6.0895]
[1718995513010,0.8627372,131.4,131.35,6.0905]
[1718995513414,0.8627372,131.4,131.34,6.091]
[1718995514223,0.8627372,131.4,131.34,6.0908]
[1718995514431,0.8627372,131.4,131.33,6.0913]
[1718995514724,0.8627372,131.4,131.34,6.091]
[1718995515225,0.8627372,131.4,131.32,6.0918]
[1718995515526,0.8627372,131.4,131.29,40.2491]
[1718995515831,20.8627372,131.4,131.25,55.6899]
[1718995516034,45.0,131.39,131.28,6.0934]
[1718995516198,45.0,131.39,131.25,55.6899]
[1718995516199,20.0,131.38,131.26,6.0943]
[1718995516542,6.2206,131.36,131.24,34.14]
[1718995516823,20.0,131.35,131.24,34.14]
[1718995517039,6.2206,131.36,131.31,6.0924]
[1718995517330,6.2206,131.36,131.29,6.0933]
[1718995518027,20.0,131.35,131.28,6.0935]
[1718995518532,20.0,131.35,131.24,49.3785]
[1718995519029,6.2206,131.36,131.28,15.2343]
[1718995519202,6.2206,131.36,131.25,30.4742]
[1718995519402,6.2206,131.36,131.26,22.98]
[1718995519926,7.3387372,131.4,131.34,6.091]
[1718995520139,20.0,131.39,131.35,6.0905]
[1718995520350,7.3387372,131.4,131.29,6.5536]
[1718995520526,7.3387372,131.4,131.34,6.0907]
[1718995520720,7.3387372,131.4,131.3,15.2321]
[1718995520721,7.3387372,131.4,131.29,6.5536]
[1718995521039,7.3387372,131.4,131.33,6.0913]
[1718995521422,7.3387372,131.4,131.3,38.2121]
[1718995521621,7.3387372,131.4,131.3,15.2321]
[1718995521834,20.0,131.39,131.34,6.091]
[1718995522228,20.0,131.39,131.3,15.2321]
[1718995522550,20.0,131.39,131.33,6.0914]
[1718995523515,20.0,131.39,131.27,102.12]
[1718995523720,20.0,131.39,131.34,6.091]
[1718995523916,20.0,131.39,131.32,6.0918]
[1718995524121,20.0,131.39,131.33,6.0914]
[1718995524419,20.0,131.39,131.31,6.0923]
[1718995524641,20.0,131.39,131.27,94.3746]
[1718995524952,45.0,131.38,131.29,6.0933]
[1718995525121,20.0,131.37,131.28,6.0938]
[1718995525532,20.0,131.37,131.29,6.0933]
[1718995525733,45.0,131.36,131.25,6.2781]
[1718995526047,20.0,131.35,131.27,6.0941]
[1718995526354,20.0,131.35,131.26,6.0943]
[1718995526553,20.0,131.35,131.28,6.0937]
[1718995526847,20.0,131.35,131.27,6.0941]
[1718995527146,20.0,131.35,131.24,15.2382]
[1718995527450,20.0,131.35,131.28,6.0938]
[1718995527858,20.0,131.35,131.27,6.0942]
[1718995528341,20.0,131.35,131.25,6.0949]
[1718995528547,21.3626,131.34,131.21,15.2421]
[1718995528729,21.3626,131.34,131.26,6.0947]
[1718995528730,65.0,131.33,131.26,6.0947]
[1718995529047,65.0,131.33,131.22,6.0965]
[1718995529241,65.0,131.33,131.2,15.2438]
[1718995529438,65.0,131.33,131.23,6.096]
[1718995529741,65.0,131.33,131.19,16.2685]
[1718995530048,6.1473,131.32,131.2,6.0973]
[1718995530258,15.8522,131.3,131.2,6.0973]
[1718995530417,6.4891,131.28,131.14,82.551345]
[1718995530616,20.0,131.27,131.19,6.0979]
[1718995530836,20.0,131.27,131.16,15.2475]
[1718995531042,45.0,131.26,131.17,6.0988]
[1718995531246,20.0,131.25,131.2,6.0975]
[1718995531449,20.0,131.27,131.19,6.0978]
[1718995531647,20.0,131.27,131.13,64.6424]
[1718995531648,20.0,131.27,131.18,6.0983]
[1718995531817,45.0,131.26,131.18,6.0983]
[1718995532016,45.0,131.26,131.17,6.0987]
[1718995532236,20.0,131.25,131.18,6.0984]
[1718995532422,20.0,131.25,131.15,15.2496]
[1718995532423,20.0,131.25,131.19,6.098]
[1718995532733,20.0,131.25,131.15,15.2496]
[1718995532734,20.0,131.25,131.18,6.0982]
[1718995532937,20.0,131.25,131.18,6.0983]
[1718995533148,20.0,131.25,131.19,6.0979]
[1718995533555,20.0,131.25,131.18,6.0983]
[1718995534548,20.0,131.25,131.17,6.0988]
[1718995534953,20.0,131.25,131.16,6.0991]
[1718995535247,20.0,131.25,131.17,6.0989]
[1718995535823,15.9301,131.24,131.17,6.0989]
[1718995536024,20.0,131.23,131.16,6.0993]
[1718995536239,6.3367,131.22,131.1,37.6318]
[1718995536441,20.0,131.21,131.16,6.0993]
[1718995536651,20.0,131.21,131.1,42.3771]
[1718995536859,20.0,131.21,131.14,6.1002]
[1718995537025,20.0,131.21,131.12,6.1009]
[1718995537225,20.0,131.21,131.13,6.1007]
[1718995537525,20.0,131.21,131.14,6.1]
[1718995537947,20.0,131.21,131.13,6.1007]
[1718995538149,20.0,131.21,131.14,6.1003]
[1718995539448,20.0,131.21,131.12,15.2521]
[1718995539637,20.0,131.21,131.12,22.98]
[1718995539835,20.0,131.21,131.17,6.0987]
[1718995540049,6.3367,131.22,131.16,6.0991]
[1718995540231,20.0,131.21,131.15,6.0996]
[1718995540662,20.0,131.21,131.16,6.0993]
[1718995541022,20.0,131.21,131.15,6.0997]
[1718995541229,20.0,131.21,131.14,6.1001]
[1718995541940,20.0,131.21,131.12,6.1008]
[1718995542250,45.0,131.2,131.12,6.1008]
[1718995542557,20.0,131.19,131.14,6.1002]
[1718995543054,20.0,131.19,131.15,6.0998]
[1718995543257,20.0,131.21,131.1,22.98]
[1718995543442,20.0,131.21,131.15,6.0998]
[1718995543643,20.0,131.21,131.09,57.12]
[1718995543959,20.0,131.21,131.12,6.1011]
[1718995544138,45.0,131.2,131.12,6.101]
[1718995544447,20.0,131.19,131.12,6.101]
[1718995544626,20.0,131.19,131.12,6.1012]
[1718995544827,20.0,131.19,131.14,6.1]
[1718995545328,20.0,131.21,131.14,6.1]
[1718995546230,20.0,131.21,131.13,6.1007]
[1718995546949,20.0,131.21,131.12,6.1011]
[1718995547133,45.0,131.2,131.11,6.1015]
[1718995547336,16.388,131.18,131.12,6.1012]
[1718995548560,16.388,131.18,131.09,34.14]
[1718995548730,16.388,131.18,131.13,6.1007]
[1718995549233,20.0,131.19,131.12,15.2529]